bitfinex/quotes_BTCUSD_20250508
["timestamp","ask_amount","ask_price","bid_price","bid_amount"]
[1746721502695,0.35275978,101030.0,101020.0,0.23997952]
[1746721503231,0.35275958,101030.0,101020.0,0.24987835]
[1746721503436,0.15479838,101030.0,101020.0,0.25977708]
[1746721503649,0.36265743,101030.0,101020.0,0.26967571]
[1746721503869,0.15679838,101030.0,101020.0,0.26967571]
[1746721504082,0.004,101030.0,101020.0,0.56192184]
[1746721504245,0.004,101030.0,101020.0,0.54212487]
[1746721504246,0.02379482,101030.0,101020.0,0.54212487]
[1746721504448,0.04359032,101030.0,101020.0,1.17957405]
[1746721504748,0.04359022,101030.0,101020.0,1.17957346]
[1746721505180,0.25609207,101030.0,101020.0,1.13008059]
[1746721505316,0.34686222,101030.0,101020.0,0.9]
[1746721505523,0.33696457,101030.0,101020.0,0.5]
[1746721506901,0.33696457,101030.0,101020.0,0.69798059]
[1746721507114,0.33696457,101030.0,101020.0,0.5]
[1746721507326,0.33696457,101030.0,101020.0,0.69798059]
[1746721507942,0.33696457,101030.0,101020.0,0.70787961]
[1746721508137,0.33696457,101030.0,101020.0,0.69798059]
[1746721508355,0.32706682,101030.0,101020.0,0.5]
[1746721508775,0.98031461,101030.0,101020.0,0.5]
[1746721510155,0.97831461,101030.0,101020.0,0.5]
[1746721510350,0.98131461,101030.0,101020.0,0.5]
[1746721510757,0.98131461,101030.0,101000.0,0.02]
[1746721510758,0.57234036,101010.0,101000.0,0.02]
[1746721510964,0.95535507,101010.0,101000.0,0.02]
[1746721511438,0.98755507,101010.0,101000.0,0.02]
[1746721511659,0.68940728,101010.0,101000.0,0.02]
[1746721511899,0.95535507,101010.0,101000.0,0.02]
[1746721512055,0.97085507,101010.0,101000.0,0.02]
[1746721512263,0.98645507,101010.0,101000.0,0.02]
[1746721513917,1.08712199,101010.0,101000.0,0.02]
[1746721514069,1.36946978,101010.0,101000.0,0.02]
[1746721515355,1.37046978,101010.0,101000.0,0.02]
[1746721515570,1.36946978,101010.0,101000.0,0.02]
[1746721515926,1.38446978,101010.0,101000.0,0.021]
[1746721516333,1.38246978,101010.0,101000.0,0.02]
[1746721516691,1.38246978,101010.0,101000.0,0.021]
[1746721516881,1.38646978,101010.0,101000.0,0.021]
[1746721517320,1.39346978,101010.0,101000.0,0.022]
[1746721517533,1.39346978,101010.0,100950.0,0.11192753]
[1746721517534,0.22254381,100960.0,100950.0,0.11192753]
[1746721517767,0.66321073,100960.0,100950.0,0.07922753]
[1746721518165,0.66321073,100960.0,100940.0,0.09572753]
[1746721518166,0.20802357,100950.0,100940.0,0.09572753]
[1746721518404,0.22258502,100940.0,100930.0,0.0303]
[1746721518615,0.94559973,100940.0,100930.0,0.0303]
[1746721518828,0.94559973,100940.0,100930.0,0.0153]
[1746721519040,0.94559973,100940.0,100930.0,0.00047078]
[1746721519242,0.94559973,100940.0,100930.0,0.50047078]
[1746721519660,0.94659973,100940.0,100930.0,0.50347078]
[1746721520048,0.94659973,100940.0,100930.0,0.50447078]
[1746721520282,0.94659973,100940.0,100930.0,0.50147078]
[1746721520485,0.94659973,100940.0,100930.0,0.50047078]
[1746721520486,0.94559973,100940.0,100930.0,0.50047078]
[1746721520690,0.67315852,100940.0,100930.0,0.69862791]
[1746721520894,0.67315852,100940.0,100930.0,0.00047078]
[1746721521095,0.67315852,100940.0,100930.0,0.21492791]
[1746721521297,0.66325194,100940.0,100930.0,0.21492791]
[1746721521500,0.44842736,100940.0,100930.0,0.25064332]
[1746721521673,0.10066692,100940.0,100930.0,0.55280573]
[1746721521872,0.10166692,100940.0,100930.0,0.55280573]
[1746721522076,0.10166692,100940.0,100930.0,0.27045794]
[1746721522318,0.002,100940.0,100930.0,0.55380573]
[1746721522532,0.001,100940.0,100930.0,0.55280573]
[1746721522747,0.22781199,100960.0,100950.0,0.22911788]
[1746721522962,0.22781199,100960.0,100950.0,0.23902367]
[1746721522963,0.33311544,100960.0,100950.0,0.23902367]
[1746721523181,0.10066692,100960.0,100950.0,0.52137136]
[1746721523394,0.14028449,100960.0,100950.0,0.51146567]
[1746721523608,0.14028449,100960.0,100950.0,0.52137136]
[1746721523828,0.36658255,100980.0,100950.0,0.51146567]
[1746721524039,0.47037654,100970.0,100960.0,0.54094299]
[1746721524235,0.66845606,100970.0,100960.0,0.51122875]
[1746721524433,0.66845606,100970.0,100960.0,0.22888096]
[1746721524675,0.66319013,100970.0,100960.0,0.0158]
[1746721524891,0.24235294,100960.0,100950.0,0.5325]
[1746721525118,0.34301986,100960.0,100950.0,0.73161788]
[1746721525412,0.67002651,100960.0,100950.0,0.501]
[1746721525639,0.67002651,100960.0,100950.0,0.5]
[1746721526085,0.01981031,100950.0,100940.0,0.21795002]
[1746721526293,0.14492358,100950.0,100940.0,0.24975002]
[1746721526658,0.16473506,100950.0,100940.0,0.24975002]
[1746721527038,0.16473506,100950.0,100940.0,0.2596565]
[1746721527259,0.36285304,100950.0,100940.0,0.23984344]
[1746721527470,0.01981286,100940.0,100930.0,0.25084313]
[1746721527685,0.15483349,100940.0,100930.0,0.23102791]
[1746721527910,0.01454085,100940.0,100930.0,0.27065794]
[1746721528111,0.03435155,100950.0,100940.0,0.25033349]
[1746721528315,0.25428101,100950.0,100940.0,0.74542691]
[1746721528517,0.34504273,100950.0,100940.0,0.73552004]
[1746721528715,0.33313723,100950.0,100940.0,0.69812004]
[1746721528943,0.67313723,100950.0,100940.0,0.5]
[1746721529352,0.76026078,100950.0,100940.0,0.5]
[1746721529529,1.0560029,100950.0,100940.0,0.002]
[1746721529756,1.0877029,100950.0,100940.0,0.005]
[1746721529966,1.10601073,100950.0,100940.0,0.005]
[1746721530165,0.72414506,100950.0,100940.0,0.005]
[1746721530306,0.82381198,100950.0,100940.0,0.003]
[1746721530487,0.72314506,100950.0,100940.0,0.003]
[1746721530698,0.69244506,100950.0,100940.0,0.003]
[1746721531508,0.54804437,100940.0,100930.0,0.21372656]
[1746721531709,0.64871129,100940.0,100930.0,0.21372656]
[1746721531909,0.4505735,100940.0,100930.0,0.21372656]
[1746721532110,0.47656572,100940.0,100930.0,0.00990766]
[1746721532323,0.13656533,100940.0,100930.0,0.21797225]
[1746721532519,0.12665856,100940.0,100930.0,0.62634498]
[1746721532770,0.14747122,100940.0,100930.0,0.61943782]
[1746721533017,0.14747122,100940.0,100930.0,0.72766479]
[1746721533216,0.33818,100940.0,100930.0,0.503]
[1746721533387,0.67570322,100940.0,100930.0,0.503]
[1746721535711,0.69402002,100940.0,100930.0,0.503]
[1746721536308,0.67570322,100940.0,100930.0,0.503]
[1746721537572,0.69402544,100940.0,100930.0,0.503]
[1746721538344,0.79853977,100940.0,100930.0,0.503]
[1746721538646,0.70932544,100940.0,100930.0,0.003]
[1746721539225,0.70932544,100940.0,100930.0,0.001]
[1746721539446,0.22262567,100920.0,100910.0,0.269534]
[1746721539626,0.34310957,100920.0,100910.0,0.27949025]
[1746721539822,0.3530184,100920.0,100910.0,0.27949025]
[1746721540071,0.15484154,100920.0,100910.0,0.27949025]
[1746721540289,0.36292714,100920.0,100910.0,0.2596718]
[1746721540454,0.14493349,100920.0,100910.0,0.27949074]
[1746721540660,0.13502475,100920.0,100910.0,0.27949005]
[1746721540860,0.13502475,100920.0,100910.0,0.77949005]
[1746721541220,0.34310967,100920.0,100910.0,0.76958092]
[1746721541422,0.00990805,100920.0,100910.0,1.16135532]
[1746721541625,0.01981629,100920.0,100910.0,1.16535532]
[1746721541826,0.03072473,100920.0,100910.0,1.16535532]
[1746721542033,0.03172473,100920.0,100910.0,1.16735532]
[1746721542229,0.02181629,100920.0,100910.0,1.16735532]
[1746721542458,0.04163337,100920.0,100910.0,1.16735532]
[1746721542658,0.04163337,100920.0,100910.0,0.78548965]
[1746721543077,0.04626617,100920.0,100910.0,0.74585236]
[1746721543258,0.3550186,100920.0,100910.0,0.75576178]
[1746721543432,0.16675066,100920.0,100910.0,0.7656713]
[1746721543638,0.13702396,100920.0,100910.0,0.77558043]
[1746721543835,0.002,100920.0,100910.0,1.1574461]
[1746721544372,0.002,100920.0,100910.0,0.77558043]
[1746721544573,0.002,100920.0,100910.0,1.1574461]
[1746721545547,0.002,100920.0,100910.0,1.25811302]
[1746721546545,0.002,100920.0,100910.0,1.59811302]
[1746721547421,0.002,100920.0,100910.0,1.99811302]
[1746721547625,0.002,100920.0,100910.0,2.37997869]
[1746721547830,0.002,100920.0,100910.0,1.99811302]
[1746721549438,0.002,100920.0,100910.0,7.42997869]
[1746721549850,0.002,100920.0,100910.0,7.43997869]
[1746721550057,0.6928,100950.0,100940.0,0.6401226]
[1746721550230,0.71260854,100960.0,100950.0,0.25823437]
[1746721550430,0.83772102,100960.0,100950.0,0.25668967]
[1746721550939,0.84762583,100960.0,100950.0,0.25423447]
[1746721551140,0.83772102,100960.0,100950.0,0.25423447]
[1746721551311,0.84762583,100960.0,100950.0,0.25423447]
[1746721551501,0.84762583,100960.0,100950.0,0.75423447]
[1746721551678,0.81791189,100960.0,100950.0,0.76413967]
[1746721551887,0.71034085,100960.0,100950.0,0.76513967]
[1746721552258,0.72024487,100960.0,100950.0,0.76513967]
[1746721552461,0.6958,100960.0,100950.0,1.14700534]
[1746721552852,0.7008,100960.0,100950.0,1.14800534]
[1746721553031,0.72060854,100960.0,100950.0,1.16613967]
[1746721553230,0.73051315,100960.0,100950.0,1.15623447]
[1746721553431,0.93851631,100960.0,100950.0,1.15623457]
[1746721553614,0.73051315,100960.0,100950.0,1.16613977]
[1746721553814,0.93851621,100960.0,100950.0,1.15623457]
[1746721554017,0.93851621,100960.0,100950.0,1.15013987]
[1746721554018,0.73741796,100960.0,100950.0,1.15013987]
[1746721554213,0.73241796,100960.0,100950.0,1.14913987]
[1746721554438,0.83872092,100960.0,100950.0,1.10311788]
[1746721554643,0.83872083,100960.0,100950.0,0.76563437]
[1746721554809,0.84862564,100960.0,100950.0,0.76563437]
[1746721555006,0.85853055,100960.0,100950.0,0.76563457]
[1746721555702,0.84862564,100960.0,100950.0,0.76563457]
[1746721555875,0.84862554,100960.0,100950.0,0.77553977]
[1746721556282,0.85853114,100960.0,100950.0,0.76563457]
[1746721556488,0.71824497,100960.0,100950.0,0.77553977]
[1746721556699,0.73805371,100960.0,100950.0,0.77553977]
[1746721556872,0.73805361,100960.0,100950.0,0.77553977]
[1746721557427,0.74795822,100960.0,100950.0,0.77553977]
[1746721557650,0.74795881,100960.0,100950.0,0.75572936]
[1746721557869,0.74795881,100960.0,100950.0,0.77553996]
[1746721558002,0.95596187,100960.0,100950.0,0.56092208]
[1746721558203,0.75786362,100960.0,100950.0,0.75903996]
[1746721558998,0.74795881,100960.0,100950.0,0.75903996]
[1746721559394,0.74795881,100960.0,100950.0,0.77503996]
[1746721559995,0.70834085,100960.0,100950.0,1.15690563]
[1746721560151,0.71824497,100960.0,100950.0,1.15690563]
[1746721560569,0.72814939,100960.0,100950.0,1.15690563]
[1746721560795,0.738054,100960.0,100950.0,0.77503996]
[1746721561296,0.738054,100960.0,100950.0,0.77003996]
[1746721561501,0.74795871,100960.0,100950.0,0.77003996]
[1746721562077,0.95596177,100960.0,100950.0,0.77003996]
[1746721562276,0.72815017,100960.0,100950.0,0.76013476]
[1746721562451,0.72815017,100960.0,100950.0,0.77003996]
[1746721563054,0.92624842,100960.0,100950.0,0.74413486]
[1746721563334,0.92624842,100960.0,100950.0,0.75404026]
[1746721564601,0.92624842,100960.0,100950.0,0.76394556]
[1746721565136,0.92624842,100960.0,100950.0,0.75404026]
[1746721565334,1.04251534,100960.0,100950.0,0.5]
[1746721566647,1.32525737,100960.0,100950.0,0.5]
[1746721566860,1.78102429,100960.0,100950.0,0.5]
[1746721567217,1.08822429,100960.0,100950.0,0.5]
[1746721567410,1.38933338,100960.0,100950.0,0.5]
[1746721567628,1.11659135,100960.0,100950.0,0.5]
[1746721567868,1.11659135,100960.0,100950.0,0.499]
[1746721568063,0.04426618,100920.0,100910.0,0.26354333]
[1746721568291,0.04426618,100920.0,100910.0,0.26358996]
[1746721568292,0.1449331,100920.0,100910.0,0.26358996]
[1746721568493,0.144933,100920.0,100910.0,0.26358996]
[1746721568746,0.15484183,100920.0,100910.0,0.75368073]
[1746721569142,0.144933,100920.0,100910.0,0.75368073]
[1746721569353,0.13502436,100920.0,100910.0,0.76358986]
[1746721569607,0.144933,100920.0,100910.0,0.76358996]
[1746721570078,0.145933,100920.0,100910.0,0.76758996]
[1746721570690,0.12611592,100920.0,100910.0,0.78418947]
[1746721570887,0.1459329,100920.0,100910.0,0.78418947]
[1746721571048,0.1459329,100920.0,100910.0,0.77528034]
[1746721571256,0.13602426,100920.0,100910.0,0.76858947]
[1746721571478,0.1459328,100920.0,100910.0,0.76858947]
[1746721571663,0.34411016,100920.0,100910.0,0.50504712]
[1746721571838,0.33420182,100920.0,100910.0,0.50504712]
[1746721572063,1.09662787,100920.0,100910.0,0.50504712]
[1746721572464,1.11493904,100920.0,100910.0,0.50504712]
[1746721572641,0.7329416,100920.0,100910.0,0.50504712]
[1746721573129,0.7329416,100920.0,100910.0,0.50404712]
[1746721573343,0.83260852,100920.0,100910.0,4.712e-05]
[1746721573537,0.7339416,100920.0,100910.0,0.00204712]
[1746721573742,0.7175416,100920.0,100910.0,0.00204712]
[1746721574072,0.69923043,100920.0,100910.0,0.00204712]
[1746721574274,1.09642787,100920.0,100910.0,0.00204712]
[1746721574522,1.19709479,100920.0,100910.0,0.00204712]
[1746721575057,0.71443043,100920.0,100910.0,0.00204712]
[1746721576078,1.09642787,100920.0,100910.0,0.00204712]
[1746721576690,1.49668137,100920.0,100910.0,0.00204712]
[1746721576898,0.25334688,100910.0,100900.0,0.00097677]
[1746721577100,0.73601124,100910.0,100900.0,0.00111824]
[1746721577229,0.85493422,100910.0,100900.0,0.00111824]
[1746721577986,0.7542673,100910.0,100900.0,0.00111824]
[1746721578163,0.7542673,100910.0,100900.0,0.00211824]
[1746721579526,0.37226986,100910.0,100900.0,0.00211824]
[1746721579715,0.3540138,100910.0,100900.0,0.00211824]
[1746721579926,0.32617295,100910.0,100900.0,0.00211824]
[1746721580159,0.31077295,100910.0,100900.0,0.00211824]
[1746721580367,0.67522332,100910.0,100900.0,0.20033429]
[1746721580577,0.46248567,100910.0,100900.0,0.20033429]
[1746721580804,0.1323942,100910.0,100900.0,0.2614659]
[1746721580976,0.14230372,100910.0,100900.0,0.25155559]
[1746721581208,0.12248508,100910.0,100900.0,0.7713761]
[1746721581357,0.14230402,100910.0,100900.0,0.76146599]
[1746721581561,0.10266692,100910.0,100900.0,1.16328385]
[1746721581769,0.12248508,100910.0,100900.0,1.16328385]
[1746721581967,0.13702583,100910.0,100900.0,1.16328385]
[1746721582350,0.002,100910.0,100900.0,1.16328385]
[1746721582757,0.002,100910.0,100900.0,1.56328385]
[1746721582980,0.002,100910.0,100900.0,2.00295077]
[1746721583185,0.02971846,100940.0,100930.0,0.2442796]
[1746721583367,0.14029186,100940.0,100930.0,0.23437234]
[1746721583572,0.14029186,100940.0,100930.0,0.25027234]
[1746721583773,0.15019844,100940.0,100930.0,0.25027234]
[1746721583978,0.15019844,100940.0,100930.0,0.6601797]
[1746721584183,0.11057301,100940.0,100930.0,0.67008686]
[1746721584391,0.12047958,100940.0,100930.0,0.67008686]
[1746721584612,0.12147958,100940.0,100930.0,0.67108686]
[1746721584818,0.12147948,100940.0,100930.0,0.67108686]
[1746721585023,0.001,100940.0,100930.0,1.0530843]
[1746721585448,0.01554085,100940.0,100930.0,1.0530843]
[1746721585858,0.02544684,100940.0,100930.0,1.0530843]
[1746721586224,0.02744684,100940.0,100930.0,1.5520843]
[1746721586424,0.03735293,100940.0,100930.0,1.17208686]
[1746721586675,0.03535293,100940.0,100930.0,1.17208686]
[1746721587132,0.03535293,100940.0,100930.0,1.17308686]
[1746721587332,0.02544684,100940.0,100930.0,1.17308686]
[1746721588422,0.03535302,100940.0,100930.0,1.17308686]
[1746721588634,0.05516627,100940.0,100930.0,1.11755713]
[1746721588848,0.0452595,100940.0,100930.0,1.1472796]
[1746721589065,0.03535302,100940.0,100930.0,0.7472796]
[1746721589280,0.03535302,100940.0,100930.0,0.73737234]
[1746721589489,0.0452593,100940.0,100930.0,0.61049668]
[1746721589899,0.03535302,100940.0,100930.0,0.61049668]
[1746721590098,0.72815302,100940.0,100930.0,0.61049668]
[1746721590274,0.72815302,100940.0,100930.0,0.5807747]
[1746721590477,0.72815302,100940.0,100930.0,0.59068216]
[1746721590695,0.72815302,100940.0,100930.0,0.60058932]
[1746721591257,0.71824684,100940.0,100930.0,0.61558932]
[1746721591689,0.71515658,100940.0,100930.0,0.61558932]
[1746721591908,0.71515658,100940.0,100930.0,0.89843542]
[1746721592060,0.72506267,100940.0,100930.0,0.89843542]
[1746721592520,0.71515658,100940.0,100930.0,0.89843542]
[1746721593975,0.71515658,100940.0,100930.0,0.61558932]
[1746721594614,0.71515658,100940.0,100930.0,0.89843542]
[1746721594826,0.70525059,100940.0,100930.0,0.89843542]
[1746721595466,0.71515668,100940.0,100930.0,0.89843542]
[1746721595666,0.72506306,100940.0,100930.0,0.89843542]
[1746721596071,0.71515668,100940.0,100930.0,0.89843542]
[1746721596284,0.72506296,100940.0,100930.0,0.89843542]
[1746721597106,0.73496944,100940.0,100930.0,0.89843542]
[1746721597286,0.72506296,100940.0,100930.0,0.89843542]
[1746721597690,0.71515668,100940.0,100930.0,0.89843542]
[1746721598132,0.72506306,100940.0,100930.0,0.89689224]
[1746721598329,0.71515668,100940.0,100930.0,0.89689224]
[1746721598589,0.72506296,100940.0,100930.0,0.89689224]
[1746721599022,0.71515668,100940.0,100930.0,0.89689224]
[1746721599681,0.72506296,100940.0,100930.0,0.89689224]
[1746721600866,0.73496934,100940.0,100930.0,0.61404614]
[1746721601077,0.73496934,100940.0,100930.0,0.89689224]
[1746721601491,0.73496934,100940.0,100930.0,0.61404614]
[1746721601715,0.74487592,100940.0,100930.0,0.88189224]
[1746721601932,1.02386836,100940.0,100930.0,0.503]
[1746721602139,0.33106836,100940.0,100930.0,0.71106498]
[1746721602337,0.33106836,100940.0,100930.0,0.7308802]
[1746721602561,0.13293086,100940.0,100930.0,1.0137263]
[1746721602766,0.02235668,100940.0,100930.0,1.06524092]
[1746721602967,0.02235658,100940.0,100930.0,1.06524092]
[1746721603138,0.01245059,100940.0,100930.0,1.06524092]
[1746721603342,0.02235668,100940.0,100930.0,1.06524092]
[1746721604101,0.02235677,100940.0,100930.0,1.06524092]
[1746721604412,0.01245059,100940.0,100930.0,1.06524092]
[1746721604948,0.001,100940.0,100930.0,1.06524092]
[1746721605983,0.001,100940.0,100930.0,1.46524092]
[1746721607325,0.001,100940.0,100930.0,1.18239482]
[1746721607538,0.01090599,100940.0,100930.0,1.46524092]
[1746721607682,0.001,100940.0,100930.0,1.46524092]
[1746721607901,0.02081227,100940.0,100930.0,1.46524092]
[1746721608094,0.01090599,100940.0,100930.0,1.46524092]
[1746721608527,0.001,100940.0,100930.0,1.46524092]
[1746721608733,0.01090618,100940.0,100930.0,1.46524092]
[1746721608939,0.02081256,100940.0,100930.0,1.45533376]
[1746721609144,0.001,100940.0,100930.0,1.46524092]
[1746721609997,0.13602023,100940.0,100930.0,1.13667264]
[1746721610169,0.33663523,100940.0,100930.0,0.70115713]
[1746721610371,0.34955842,100940.0,100930.0,0.70115713]
[1746721610773,0.34406529,100940.0,100930.0,0.71106488]
[1746721610956,0.36244042,100940.0,100930.0,0.70115713]
[1746721611377,0.15439605,100940.0,100930.0,0.71106488]
[1746721611616,0.16430292,100940.0,100930.0,0.71106488]
[1746721611764,0.14448908,100940.0,100930.0,1.03993326]
[1746721611976,0.12611395,100940.0,100930.0,1.05623326]
[1746721612240,0.12611376,100940.0,100930.0,1.05623326]
[1746721612388,0.02544684,100940.0,100930.0,1.05623326]
[1746721612594,0.01554085,100940.0,100930.0,1.05623326]
[1746721613210,0.02544684,100940.0,100930.0,1.05623326]
[1746721613408,0.03535312,100940.0,100930.0,1.05623326]
[1746721614188,0.02544684,100940.0,100930.0,1.05623326]
[1746721614393,0.03535312,100940.0,100930.0,1.05623326]
[1746721614744,0.01554085,100940.0,100930.0,1.05623326]
[1746721614893,0.02544684,100940.0,100930.0,1.05623326]
[1746721615317,0.03535312,100940.0,100930.0,1.05623326]
[1746721615686,0.02544684,100940.0,100930.0,1.05623326]
[1746721616272,0.01554085,100940.0,100930.0,1.05623326]
[1746721616476,0.02544694,100940.0,100930.0,1.05623326]
[1746721616681,0.01554085,100940.0,100930.0,1.05623326]
[1746721616884,0.02544684,100940.0,100930.0,1.05623326]
[1746721617125,0.01554085,100940.0,100930.0,1.05623326]
[1746721617329,0.02544694,100940.0,100930.0,1.05623326]
[1746721617507,0.01554085,100940.0,100930.0,1.05623326]
[1746721617876,0.02544694,100940.0,100930.0,1.05623326]
[1746721618220,0.02544703,100940.0,100930.0,1.05623326]
[1746721618440,0.01554085,100940.0,100930.0,1.03993326]
[1746721618847,0.01554085,100940.0,100930.0,1.05653326]
[1746721619244,0.01554085,100940.0,100930.0,0.77368716]
[1746721619570,0.01554085,100940.0,100930.0,1.05653326]
[1746721619876,0.01554085,100940.0,100930.0,0.77368716]
[1746721620718,0.02544694,100940.0,100930.0,0.77368716]
[1746721621073,0.01554085,100940.0,100930.0,0.77368716]
[1746721621485,0.21609974,100950.0,100940.0,0.1981375]
[1746721621685,0.35198306,100950.0,100940.0,0.1981375]
[1746721621885,0.35198306,100950.0,100940.0,0.20804437]
[1746721622087,0.35198306,100950.0,100940.0,0.1981375]
[1746721622285,0.34207747,100950.0,100940.0,0.1981375]
[1746721622466,0.35847747,100950.0,100940.0,0.1981375]
[1746721622670,0.36047747,100950.0,100940.0,0.6981375]
[1746721623249,0.36147747,100950.0,100940.0,0.502]
[1746721623463,0.99078961,100950.0,100940.0,0.502]
[1746721623861,0.99078961,100950.0,100940.0,0.002]
[1746721624244,0.99769307,100950.0,100940.0,0.002]
[1746721624591,0.71484697,100950.0,100940.0,0.002]
[1746721625032,0.71484697,100950.0,100940.0,0.2001375]
[1746721625585,0.69225256,100950.0,100940.0,0.2001375]
[1746721625790,0.6922514,100950.0,100940.0,0.71004437]
[1746721625992,0.7021567,100950.0,100940.0,0.71004437]
[1746721626358,0.69525324,100950.0,100940.0,0.71004437]
[1746721626522,0.68534794,100950.0,100940.0,0.7001375]
[1746721626945,0.67544235,100950.0,100940.0,0.7001375]
[1746721627167,0.69134235,100950.0,100940.0,0.502]
[1746721627731,0.69134235,100950.0,100940.0,0.7001375]
[1746721627938,0.70975944,100950.0,100940.0,0.7001375]
[1746721628166,0.70975944,100950.0,100940.0,0.502]
[1746721628367,1.00810554,100950.0,100940.0,0.502]
[1746721628968,1.01501198,100950.0,100940.0,0.502]
[1746721629388,0.70076588,100950.0,100940.0,0.2001375]
[1746721629763,0.70076588,100950.0,100940.0,0.002]
[1746721630835,0.70076588,100950.0,100940.0,0.502]
[1746721632781,0.70076588,100950.0,100940.0,0.49213906]
[1746721633007,0.70076588,100950.0,100940.0,0.70018333]
[1746721633008,0.512553,100950.0,100940.0,0.70018333]
[1746721633234,0.01911725,100950.0,100940.0,1.03434209]
[1746721633462,0.03892775,100950.0,100940.0,1.03434209]
[1746721633675,0.04883305,100950.0,100940.0,0.75149599]
[1746721633878,0.04192651,100950.0,100940.0,0.75149599]
[1746721634053,0.04262129,100950.0,100940.0,0.75149599]
[1746721634259,0.0327157,100950.0,100940.0,0.75149599]
[1746721634467,0.003,100950.0,100940.0,0.45257657]
[1746721634677,0.02281031,100950.0,100940.0,0.45257657]
[1746721634915,0.003,100950.0,100940.0,0.45257657]
[1746721635676,0.003,100950.0,100940.0,1.05324349]
[1746721635928,0.003,100950.0,100940.0,1.39324349]
[1746721636076,0.01190501,100950.0,100940.0,0.95257657]
[1746721636258,0.02181031,100950.0,100940.0,0.95257657]
[1746721636460,0.02281011,100950.0,100940.0,0.95457657]
[1746721636928,0.003,100950.0,100940.0,0.95457657]
[1746721637152,0.001,100950.0,100940.0,0.95457657]
[1746721637295,0.001,100950.0,100940.0,1.35457657]
[1746721637500,0.0208105,100950.0,100940.0,1.06382429]
[1746721637721,0.0208105,100950.0,100940.0,1.07373047]
[1746721637937,0.0109051,100950.0,100940.0,1.07373047]
[1746721638102,0.0208104,100950.0,100940.0,0.66382429]
[1746721638306,1.02693674,100950.0,100940.0,0.504]
[1746721638717,1.0453102,100950.0,100940.0,0.504]
[1746721638914,1.05449784,100950.0,100940.0,0.7001375]
[1746721639323,1.03512438,100950.0,100940.0,0.70804437]
[1746721639527,1.03512438,100950.0,100940.0,0.7001375]
[1746721639744,1.03512438,100950.0,100940.0,0.71004437]
[1746721639957,1.02593674,100950.0,100940.0,0.70804437]
[1746721640156,1.02693674,100950.0,100940.0,0.70804437]
[1746721640385,1.02693674,100950.0,100940.0,0.6981375]
[1746721640742,1.02693674,100950.0,100940.0,0.70804437]
[1746721641149,1.02893674,100950.0,100940.0,0.70804437]
[1746721641740,1.02893674,100950.0,100940.0,0.71795114]
[1746721641935,0.80637202,100950.0,100940.0,1.0206099]
[1746721642154,0.70570501,100950.0,100940.0,1.0521099]
[1746721642463,0.71561021,100950.0,100940.0,1.0521099]
[1746721642671,0.72551561,100950.0,100940.0,1.0521099]
[1746721642805,0.70570501,100950.0,100940.0,0.7692638]
[1746721643014,0.71461021,100950.0,100940.0,0.7692638]
[1746721643217,0.6958,100950.0,100940.0,1.0541099]
[1746721643917,0.6938,100950.0,100940.0,1.0541099]
[1746721644333,0.7136107,100950.0,100940.0,0.7712638]
[1746721644537,0.7136106,100950.0,100940.0,0.7712638]
[1746721644821,0.7037052,100950.0,100940.0,0.7712638]
[1746721644935,0.7037052,100950.0,100940.0,1.1712638]
[1746721645141,0.72351629,100950.0,100940.0,1.1712638]
[1746721645350,0.72351629,100950.0,100940.0,0.7712638]
[1746721645932,0.72351619,100950.0,100940.0,0.7712638]
[1746721646142,0.7037052,100950.0,100940.0,0.7712638]
[1746721646533,0.6938,100950.0,100940.0,1.0541099]
[1746721646665,0.001,100950.0,100940.0,1.0541099]
[1746721646871,0.001,100950.0,100940.0,1.43762292]
[1746721647075,0.001,100950.0,100940.0,1.15477682]
[1746721647277,0.001,100950.0,100940.0,1.77762292]
[1746721647485,0.001,100950.0,100940.0,1.21193072]
[1746721647685,0.001,100950.0,100940.0,1.78762292]
[1746721647879,0.001,100950.0,100940.0,6.94192292]
[1746721648289,0.001,100950.0,100940.0,5.11812292]
[1746721648840,0.001,100950.0,100940.0,5.12012292]
[1746721649196,0.00990216,100980.0,100970.0,0.25828923]
[1746721649439,0.00990216,100980.0,100970.0,0.54113533]
[1746721649614,0.01980452,100980.0,100970.0,0.94113533]
[1746721649803,0.00990216,100980.0,100970.0,0.94113533]
[1746721650213,0.01980452,100980.0,100970.0,0.94113533]
[1746721650437,0.01980452,100980.0,100970.0,1.15828923]
[1746721650781,0.01090216,100980.0,100970.0,1.44113533]
[1746721651129,0.02080452,100980.0,100970.0,1.44113533]
[1746721651542,0.01090216,100980.0,100970.0,1.44113533]
[1746721651736,0.02280452,100980.0,100970.0,1.44113533]
[1746721652662,0.01290216,100980.0,100970.0,1.44113533]
[1746721653062,0.01290226,100980.0,100970.0,1.44113533]
[1746721653312,0.02280472,100980.0,100970.0,1.44113533]
[1746721653668,0.01290226,100980.0,100970.0,1.12338246]
[1746721653872,0.02280521,100980.0,100970.0,1.12338236]
[1746721654160,0.02280462,100980.0,100970.0,0.73328589]
[1746721654368,0.03270717,100980.0,100970.0,0.72338256]
[1746721654499,0.02280452,100980.0,100970.0,0.74318933]
[1746721654700,0.03270717,100980.0,100970.0,0.75309306]
[1746721654928,0.03270707,100980.0,100970.0,0.74318972]
[1746721655127,0.04260982,100980.0,100970.0,0.74318972]
[1746721655448,0.03270707,100980.0,100970.0,0.75309316]
[1746721655650,0.04260972,100980.0,100970.0,0.75309316]
[1746721655862,0.003,100980.0,100970.0,1.0458426]
[1746721656069,0.003,100980.0,100970.0,1.06134191]
[1746721656208,0.003,100980.0,100970.0,0.77849581]
[1746721656581,0.003,100980.0,100970.0,1.06134191]
[1746721658761,0.01290206,100980.0,100970.0,1.06134191]
[1746721659572,0.01290206,100980.0,100970.0,1.46134191]
[1746721660105,0.003,100980.0,100970.0,1.46134191]
[1746721660317,0.01290216,100980.0,100970.0,1.46134191]
[1746721660867,0.003,100980.0,100970.0,1.46134191]
[1746721661251,0.01290216,100980.0,100970.0,1.46134191]
[1746721661456,0.01290206,100980.0,100970.0,1.46134191]
[1746721661698,0.02280432,100980.0,100970.0,1.46134191]
[1746721661889,0.01290206,100980.0,100970.0,1.46134191]
[1746721662033,0.02280442,100980.0,100970.0,1.45143867]
[1746721662235,0.01290206,100980.0,100970.0,1.46134191]
[1746721662473,0.02280432,100980.0,100970.0,1.46134191]
[1746721663057,0.03660943,100980.0,100970.0,1.13328619]
[1746721663259,0.03660943,100980.0,100970.0,1.11347863]
[1746721663260,0.23466845,100980.0,100970.0,1.11347863]
[1746721663459,0.21786442,100980.0,100970.0,0.69807863]
[1746721663684,0.21786442,100980.0,100970.0,0.70798246]
[1746721663886,0.0198054,100980.0,100970.0,1.10798246]
[1746721664117,0.01980501,100980.0,100970.0,0.71788609]
[1746721664317,0.02970697,100980.0,100970.0,0.72778962]
[1746721664493,1.24776712,100990.0,100980.0,0.20796177]